Cogmind - Beta 13 @@@ ROGUE MODE // 2024.04.30 @ 13:30:02 Player: A Foxgirl OWO Result: Self-destructed Performance ------------- Evolutions (1) 500 Regions Visited (3) 600 Robots Destroyed (34) 170 Value Destroyed (808) 808 Prototype IDs (6) 120 Alien Tech Used (0) 0 Bonus (35) 35 TOTAL SCORE: 2233 Bonus ------- Follower Combat Kills 35 Cogmind --------- Core Integrity 384/400 Matter 255/300 Energy 250/250 System Corruption 0% Temperature Cool (0) Movement Walking (190) Ox1 Location -9/Materials Parts ------- > --- POWER (1) -------- Ion Engine > --- PROPULSION (3) --- Aluminum Leg > --- UTILITY (3) ------ Small Storage Unit Seismic Detector Targeting Computer > --- WEAPON (2) ------- Autogun Autogun > --- INVENTORY (8) ---- Ion Engine Light Ion Engine Aluminum Leg ECM Suite Tractor Beam Autogun Grenade Launcher Peak State ------------ > --- POWER ------------ Ion Engine > --- PROPULSION ------- Aluminum Leg Aluminum Leg Aluminum Leg > --- UTILITY ---------- Small Storage Unit Seismic Detector Targeting Computer > --- WEAPON ----------- Autogun Autogun > --- INVENTORY -------- Light Ion Engine Aluminum Leg ECM Suite Tractor Beam Autogun Grenade Launcher [Rating: 11] Favorites ----------- Power Ion Engine Engine Ion Engine Propulsion Aluminum Leg Treads Light Treads Leg Aluminum Leg Utility Small Storage Unit Device Seismic Detector Storage Small Storage Unit Processor Targeting Computer Weapon Autogun Ballistic Gun Autogun Build | -11 -10 -10 -9 ------- Run | Yrd Mat Min Mat Slots Evolved 2 | . . . 2 Power . | . . . . Propulsion 1 | . . . 1 Utility 1 | . . . 1 Weapon . | . . . . Parts Attached 22 | 6 12 . 4 Power 4 | 1 2 . 1 Engine 4 | 1 2 . 1 Core . | . . . . Reactor . | . . . . Propulsion 6 | 2 2 . 2 Treads 2 | 2 . . . Leg 4 | . 2 . 2 Wheel . | . . . . Hover . | . . . . Flight . | . . . . Utility 4 | 1 2 . 1 Device 2 | . 1 . 1 Storage 1 | 1 . . . Processor 1 | . 1 . . Hackware . | . . . . Protection . | . . . . Artifact . | . . . . Weapon 8 | 2 6 . . Energy Gun . | . . . . Energy Cannon . | . . . . Ballistic Gun 8 | 2 6 . . Ballistic Cannon . | . . . . Launcher . | . . . . Special Weapon . | . . . . Impact Weapon . | . . . . Slashing Weapon . | . . . . Piercing Weapon . | . . . . Special Melee Weapon . | . . . . Unidentified Prototypes . | . . . . Parts Lost 3 | . 1 . 2 Power . | . . . . Propulsion 2 | . . . 2 Utility 1 | . 1 . . Weapon . | . . . . Highest Loss Streak 2 | . 1 . 2 To Critical Strikes . | . . . . Average Slot Usage (%) 97 | . 95 100 99 Engine 13 | . 14 14 11 Treads 10 | . 18 . . Leg 18 | . 9 28 32 Device 4 | . 5 . 11 Storage 13 | . 14 14 11 Processor 7 | . 4 14 11 Ballistic Gun 27 | . 28 28 22 Naked Turns . | . . . . Heaviest Build 17 | 13 17 16 17 Greatest Support 40 | 40 40 20 30 Greatest Overweight (x) 1 | . 1 . . Average Overweight (x) . | . . . . Largest Inventory Capacity 8 | 8 8 8 8 Average Capacity 7 | 7 8 8 8 Most Carried 8 | 5 8 8 7 Average Carried 7 | 3 7 8 6 Final Capacity 8 | 8 8 8 8 Final Carried 8 | 5 8 8 7 Class Distribution -------------------- 100% | Mutant Dominant Class ---------------- Mutant | -10/Materials Mutant | -10/Mines Mutant | -9/Materials Resources | -11 -10 -10 -9 ----------- Run | Yrd Mat Min Mat Matter Collected 955 | 201 399 121 234 Remotely . | . . . . Salvage Created 990 | . 568 120 302 Parts 79 | . 36 19 24 Haulers Intercepted . | . . . . Recyclers Shooed . | . . . . Parts Field Recycled . | . . . . Retrieved Matter . | . . . . Parts Self-Destructed . | . . . . Prevented . | . . . . Kills | -11 -10 -10 -9 ------- Run | Yrd Mat Min Mat Combat Hostiles Destroyed 33 | . 15 9 9 Guns 33 | . 15 9 9 Classes Destroyed 4 | . 2 . 2 Worker 1 | . . . 1 Swarmer 16 | . 2 9 5 Grunt 14 | . 13 . 1 Sentry 3 | . . . 3 Best Kill Streak 6 | . 3 6 4 Combat Bots Only 6 | . 3 6 4 Max Kills in Single Turn 2 | . 1 1 2 Gunslinging . | . . . . Exploded . | . . . . Melee . | . . . . Uniques/NPCs Destroyed . | . . . . Combat | -11 -10 -10 -9 -------- Run | Yrd Mat Min Mat Hostile Shots Fired 153 | . 82 26 45 Missed 50 | . 28 7 15 Damage Taken 1089 | . 576 147 366 Core 93 | . 63 14 16 Absorbed by Shields . | . . . . Regen/Repaired (Parts) 92 | . 92 . . Core Remaining (%) 84 | 100 . 69 . Volleys Fired 89 | 1 42 15 31 Largest 2 | 2 2 2 2 Hottest 46 | 40 46 46 46 Shots Fired 178 | 2 84 30 62 Gun 178 | 2 84 30 62 Cannon . | . . . . Launcher . | . . . . Special . | . . . . Kinetic 178 | 2 84 30 62 Thermal . | . . . . Explosive . | . . . . Electromagnetic . | . . . . Robot Hit Streak 15 | . 10 4 15 Robot Miss Streak 5 | . 5 2 3 Penetration Max . | . . . . Secondary Targets 3 | . 2 1 . Max Gunslinging Chain 1 | . 1 1 . Shots Hit Robots 106 | . 50 16 40 Core Hits 47 | . 24 9 14 Critical Kills 2 | . 1 1 . Critical Parts Destroyed . | . . . . Critical Strikes 2 | . 1 1 . Destroy 2 | . 1 1 . Melee Attacks . | . . . . Impact . | . . . . Slashing . | . . . . Piercing . | . . . . Sneak Attacks . | . . . . Combat Hostiles . | . . . . Follow-up Attacks . | . . . . Damage Inflicted 1479 | . 629 233 617 Guns 1476 | . 626 233 617 Cannons . | . . . . Explosions . | . . . . Melee . | . . . . Ramming 3 | . 3 . . Kinetic 1476 | . 626 233 617 Thermal . | . . . . Explosive . | . . . . Electromagnetic . | . . . . Impact . | . . . . Slashing . | . . . . Piercing . | . . . . Highest Corruption . | . . . . Average Corruption . | . . . . Corruption Purged . | . . . . Corruption Blocked . | . . . . Overload Shots . | . . . . Overflow Damage . | . . . . Projectiles . | . . . . Explosions . | . . . . Melee . | . . . . Knockbacks . | . . . . Impact . | . . . . Kinetic . | . . . . Secondary . | . . . . Self-Inflicted Damage . | . . . . Shots . | . . . . Rammed 1 | . 1 . . Targets Rammed 1 | . 1 . . Kicked . | . . . . Crushed . | . . . . Highest Temperature 56 | . 56 12 12 Average Temperature 13 | . 18 5 8 Received Heat Transfer 342 | . 264 . 78 Siege Activations . | . . . . Robots Corrupted . | . . . . Combat Hostiles . | . . . . Parts Fried . | . . . . Impact Corruptions . | . . . . Robots Melted . | . . . . Combat Hostiles . | . . . . Parts Melted . | . . . . Heat Transferred . | . . . . Parts Sabotaged . | . . . . Parts Stolen . | . . . . Parts Stripped . | . . . . Power Chain Reactions . | . . . . Alert | -11 -10 -10 -9 ------- Run | Yrd Mat Min Mat Peak Influence 399 | . 203 155 399 Initial 60 | . . . 60 Average 100 | . 66 115 219 Maximum Alert Level 1 | . 1 . 1 Low Security (%) 91 | 100 98 100 45 Level 1 8 | . 1 . 54 Level 2 . | . . . . Level 3 . | . . . . Level 4 . | . . . . Level 5 . | . . . . High Security . | . . . . Max Security . | . . . . Squads Dispatched 5 | . 4 . 1 Investigation 3 | . 3 . . Extermination . | . . . . Reinforcement 2 | . 1 . 1 Assault . | . . . . Garrison . | . . . . Intercept . | . . . . Searches Triggered . | . . . . Construction Impeded . | . . . . Haulers Reinforced . | . . . . Active Scanning Responses . | . . . . Cargo Convoy Interrupts . | . . . . Stealth | -11 -10 -10 -9 --------- Run | Yrd Mat Min Mat Distress Signals 6 | . 4 . 2 Communications Jammed . | . . . . Distress Signals . | . . . . Times Spotted 54 | . 30 11 13 Peak Tracking Total 5 | . 5 3 5 Tactical Retreats 2 | . . 1 1 Traps | -11 -10 -10 -9 ------- Run | Yrd Mat Min Mat Traps Triggered 1 | . 1 . . Indirectly . | . . . . Trap Hack Attempts . | . . . . Triggered . | . . . . Disarmed . | . . . . Reprogrammed . | . . . . Reused . | . . . . Traps Extracted . | . . . . Installed . | . . . . Triggered . | . . . . Machines | -11 -10 -10 -9 ---------- Run | Yrd Mat Min Mat Machines Disabled 1 | . . . 1 Max in Single Turn 1 | . . . 1 Machines Repaired . | . . . . Machines Dismantled . | . . . . Machines Sabotaged . | . . . . Overloaded Fab Kills . | . . . . Hacking | -11 -10 -10 -9 --------- Run | Yrd Mat Min Mat Machines Accessed 10 | . 8 . 2 Terminals 6 | . 5 . 1 Fabricators . | . . . . Repair Stations 1 | . 1 . . Recycling Units 3 | . 2 . 1 Scanalyzers . | . . . . Garrison Access . | . . . . Total Hacks 31 | . 28 . 3 Successful 15 | . 14 . 1 Failed 16 | . 14 . 2 Catastrophic 2 | . 2 . . Database Lockouts . | . . . . Manual 12 | . 10 . 2 Terminals 21 | . 19 . 2 Fabricators . | . . . . Repair Stations 5 | . 5 . . Recycling Units 5 | . 4 . 1 Scanalyzers . | . . . . Garrison Access . | . . . . Terminal Hacks 8 | . 8 . . Prototype ID Bank 4 | . 4 . . Branch Access Points 1 | . 1 . . Locate Traps 3 | . 3 . . Fabricator Hacks . | . . . . Repair Station Hacks 2 | . 2 . . Scan Component 1 | . 1 . . Repair 1 | . 1 . . Recycling Unit Hacks 5 | . 4 . 1 Report Inventory 3 | . 2 . 1 Retrieve Matter 1 | . 1 . . Retrieve Components 1 | . 1 . . Scanalyzer . | . . . . Garrison Access Hacks . | . . . . Unauthorized Hacks . | . . . . Terminals . | . . . . Fabricators . | . . . . Repair Stations . | . . . . Recycling Units . | . . . . Scanalyzers . | . . . . Garrison Access . | . . . . Data Cores Recovered . | . . . . Used . | . . . . Hacking Detections 8 | . 6 . 2 Full Trace Events 2 | . 2 . . Feedback Events . | . . . . Feedback Blocked . | . . . . Robot Schematics Acquired . | . . . . Robots Built . | . . . . Authchips . | . . . . Time . | . . . . Total Robot Build Rating . | . . . . Part Schematics Acquired . | . . . . Parts Built . | . . . . Authchips . | . . . . Time . | . . . . Total Part Build Rating . | . . . . Parts Repaired 1 | . 1 . . Time 26 | . 26 . . Parts Recycled . | . . . . Recycled Matter . | . . . . Retrieved Matter . | . . . . Retrieved Components 2 | . 2 . . Parts Scanalyzed . | . . . . Part Schematics Acquired . | . . . . Parts Damaged . | . . . . Bothacking | -11 -10 -10 -9 ------------ Run | Yrd Mat Min Mat Used RIF Installer . | . . . . Robots Hacked . | . . . . Non-combat . | . . . . Combat . | . . . . Robot Hacks Applied . | . . . . Relay Couplers Released . | . . . . Fabnet Peak Effective % . | . . . . Robots Rewired . | . . . . Allies Hacked . | . . . . Hacks Repelled . | . . . . Allies | -11 -10 -10 -9 -------- Run | Yrd Mat Min Mat Total Allies 3 | . . 3 . Largest Group 2 | . . 2 1 Highest-Rated Group 49 | . . 49 31 Highest-Rated Ally 31 | . . 31 31 Total Orders . | . . . . Ally Attacks 16 | . . 10 6 Total Damage 166 | . . 104 62 Kills 5 | . . 3 2 Allies Corrupted . | . . . . Allies Melted . | . . . . Intel | -11 -10 -10 -9 ------- Run | Yrd Mat Min Mat Robot Analysis Total . | . . . . Derelict Logs Recovered 2 | . . 2 . Drone Launches . | . . . . Drone Recoveries . | . . . . Exploration | -11 -10 -10 -9 ------------- Run | Yrd Mat Min Mat Turns Passed 2481 | 78 1348 685 370 Spaces Moved 1583 | 40 802 511 230 Core 8 | 8 . . . Treads 455 | 32 423 . . Legs 1120 | . 379 511 230 Wheels . | . . . . Hover . | . . . . Flight . | . . . . Fastest Speed 50 | 50 120 120 120 Average Speed 131 | 138 141 120 120 Slowest Speed 190 | 160 190 120 120 Overloaded Moves . | . . . . Propulsion Burnouts . | . . . . Robots Hopped . | . . . . Cave-ins Triggered . | . . . . Exploration Rate (%) 55 | 5 97 98 20 Regions Visited 3 Branch Regions 1 Pre-discovered Areas . | . . . . Known Exits Taken 1 | . 1 . . Unknown Exits Taken 2 | 1 . 1 . Scrap Searched 1 | . . 1 . Spaces Dug . | . . . . Terrain Destroyed . | . . . . Melee . | . . . . Projectile . | . . . . AOE . | . . . . Terrain Rammed . | . . . . Walls Destroyed . | . . . . Machines Disabled . | . . . . Actions | -11 -10 -10 -9 --------- Run | Yrd Mat Min Mat Total 1839 | 58 949 559 273 Wait 122 | 7 73 34 8 Move 1580 | 39 801 510 230 Hop . | . . . . Pick Up 13 | 5 8 . . Fast Attach 9 | 6 3 . . Attach 3 | . 1 . 2 Detach . | . . . . Swap 10 | . 8 . 2 Drop 12 | . 12 . . Fire 89 | 1 42 15 31 Melee . | . . . . Ram . | . . . . Kick . | . . . . Crush 1 | . 1 . . Escape Stasis . | . . . . Rewire . | . . . . Trap . | . . . . Miscellaneous . | . . . . Route ------- -11/Scrapyard -10/Materials (discovered 5 exits: *Mat x3 / *Min x2) -10/Mines (discovered 2 exits: *Mat x2) -9/Materials (discovered 4 exits: Mat x3 / Min) History --------- Turn | Location | Event 5 | -11/Scrapyard | Discovered new exit (range 16) 79 | -11/Scrapyard | Entered Materials 112 | -10/Materials | Identified exit to Mines 308 | -10/Materials | Build established: Mutant 338 | -10/Materials | Discovered new exit (range 4) 450 | -10/Materials | Repaired Assault Rifle 828 | -10/Materials | Discovered new exit (range 16) 1086 | -10/Materials | Discovered new exit (range 14) 1427 | -10/Materials | Entered Mines 1457 | -10/Mines | Learned Materials emergency access door positions 1585 | -10/Mines | Learned 8 Materials zone layouts 1821 | -10/Mines | Found a hidden stash of uninstalled traps 1868 | -10/Mines | Escorted by a lone wolf Derelict 1872 | -10/Mines | Discovered new exit (range 13) 1959 | -10/Mines | Discovered new exit (range 16) 2112 | -10/Mines | Entered Materials 2112 | -9/Materials | Accompanied by 1 ally 2112 | -9/Materials | Evolved 2 slots: Propulsion x1, Utility x1 2113 | -9/Materials | Identified exit to Mines 2113 | -9/Materials | Identified exit to Materials 2482 | -9/Materials | Self-destructed Last Messages --------------- ALERT: Hostiles spotted, dispatching reinforcements to Terminal M001. Y-45 Defender destroyed. W-16 Scout sends out distress signal. S-10 Pest destroyed. Acquired 64 matter. K-01 Serf collects debris. Y-45 Defender destroyed. K-01 Serf collects debris. Acquired 58 matter. Acquired 13 matter. K-01 Serf collects debris. U-05 Engineer builds a Door. K-01 Serf collects debris. R-06 Scavenger collects Lgt. Assault Rifle. K-01 Serf collects debris. Connecting with Terminal... Aluminum Leg destroyed. K-01 Serf destroyed. G-34 Mercenary destroyed. Map ----- +----------------------------------------------------+ | ?####### """ #??????# ????????? | | ?# T # """ #??????# ????????? | | ?# # """ #??????# ????????? | | ?# +^ #??????# ????????? | | ?# """ # #??????# ????????? | | ?# """ # " " ######?###????????? | | ?# """ + "Y" / #????????????? | | ?# # """ # #????????????? | | ?####+## # #????????????? | | ????# + #????????????? | | ????# ##### #????????????? | | ????# #???# #????????????? | | ????# #???# #????????????? | | ????# #???# #????????????? | | ????# ##### #??##????????? | | ????# ## #######??# ????????? | | ?####+## # #??# ????????? | | ?# T ## a# """"" #??# ????????? | | ?# ##=%# ""T"" #??# ????????? | | ?# ##%!# #??# ????????? | | ?# ##=*# #??# ## # | | ######### # """ #??###### # | | # # # """ #???????# # | | # # # """ #???????# # | | #""" # # #???????# # | | #""" #@ #####+######?????# # | | #""" # #?????# # | | # + [ #?????# # | | #""" #!! != #?????###### | | #""" ###+####### #??????????# | | #""" #*%[== # #??????????# | | # # [[* ## #??????????# | | # # ## ############ | | ######### ## # [[[## | | ????????########### # [[[## | | ???????????# # """ [[ ## | | ???????????# *# """ #? | | ???????????# "*""" #? | | ???????????# """ =# *"" #? | | ???????????# """ #= "" !## | | ???????????## """ # != # | | ????????????# #######+#### | | ????????????# [#?????# #??? | | ??########### """ =%#?????# #??? | | ??# # """===#?????# #??? | | ??# # """ *%####### #??? | | ??# # #??? | | ??# + ####??? | | ??# # """ #?????? | | ??# # """ ############ | +----------------------------------------------------+ Best States ------------- Heat Dissipation 28 Energy Generation 10 Energy Capacity 250 Matter Stores 300 Matter Capacity 300 Sight Range 16 Terrain Scan Density 10 Evasion (%) 55 Targeting Accuracy 5 Recoil Reduction 2 Item Schematics ----------------- None Robot Schematics ------------------ None Fabricated ------------ Nothing Alien Tech Used ----------------- None Achievements -------------- None Challenges ------------ None Game ------ Seed CombatAntimissileKit Manual? 0 Play Time 00:21:08 Cumulative 15.4 hours Start 2024.04.30 @ 13:11:37 End 2024.04.30 @ 13:30:02 Sessions 1 Manual Loads 0 Difficulty Rogue Special Mode None Game No. 39 Rogue 39 Adventurer 0 Explorer 0 Win Type - Total 0 Types 0/0/0/0/0/0/0/0/0 Lore% 15 Gallery% 15 Achievement% 12 Wizard Run 0 Options --------- Layout 1 ASCII 0 Keyboard 0 Movement Mouse Keybinds 0 Fullscreen 0 Font 42/SmallcapsGlow Map View 50x35 Zoom Use 0% Tactical HUD 0 Map Filters NONE Filters NONE Steam 1 RUN: cc0ea08c-8c76-4b5d-bf9c-702b3ec14f5a